Cogmind - Beta 13 @@@ ROGUE MODE // 2024.04.03 @ 23:17:27 Player: TiredKraken Result: Destroyed by Y-45 Defender with Beam Rifle Performance ------------- Evolutions (1) 500 Regions Visited (3) 600 Robots Destroyed (25) 125 Value Destroyed (651) 651 Prototype IDs (3) 60 Alien Tech Used (0) 0 Bonus (0) 0 TOTAL SCORE: 1936 Bonus ------- None Cogmind --------- Core Integrity 0/400 Matter 222/300 Energy 100/100 System Corruption 0% Temperature Cool (9) Movement Walking (120) Location -9/Materials Parts ------- > --- POWER (2) -------- (None) > --- PROPULSION (2) --- Aluminum Leg > --- UTILITY (3) ------ (None) > --- WEAPON (2) ------- (None) > --- INVENTORY (5) ---- (None) Peak State ------------ > --- POWER ------------ Deuterium Engine > --- PROPULSION ------- Aluminum Leg Aluminum Leg > --- UTILITY ---------- Hardened Light Armor Plating Hardlight Generator > --- WEAPON ----------- Field Laser Light Assault Rifle > --- INVENTORY -------- Improved Trap Extractor [Rating: 14] Favorites ----------- Power Ion Engine Engine Ion Engine Propulsion Aluminum Leg Leg Aluminum Leg Wheel Wheel Hover Unit Hover Unit Flight Unit Improved Flight Unit Utility Hardened Light Armor Plating Device Sensor Array Protection Hardened Light Armor Plating Weapon Grenade Launcher Energy Gun Medium Laser Energy Cannon Light EM Pulse Cannon Ballistic Gun Light Assault Rifle Launcher Grenade Launcher Special Weapon Mining Laser Special Melee Weapon Datajack Build | -11 -10 -10 -9 ------- Run | Yrd Mat Min Mat Slots Evolved 2 | . . . 2 Power 1 | . . . 1 Propulsion . | . . . . Utility 1 | . . . 1 Weapon . | . . . . Parts Attached 50 | 5 30 5 10 Power 8 | 1 4 1 2 Engine 8 | 1 4 1 2 Core . | . . . . Reactor . | . . . . Propulsion 20 | 2 12 1 5 Treads . | . . . . Leg 11 | . 7 1 3 Wheel 4 | 2 2 . . Hover 4 | . 3 . 1 Flight 1 | . . . 1 Utility 5 | . 4 1 . Device 4 | . 3 1 . Storage . | . . . . Processor . | . . . . Hackware . | . . . . Protection 1 | . 1 . . Artifact . | . . . . Weapon 17 | 2 10 2 3 Energy Gun 7 | 2 3 1 1 Energy Cannon 3 | . 3 . . Ballistic Gun 3 | . . 1 2 Ballistic Cannon . | . . . . Launcher 2 | . 2 . . Special Weapon 1 | . 1 . . Impact Weapon . | . . . . Slashing Weapon . | . . . . Piercing Weapon . | . . . . Special Melee Weapon 1 | . 1 . . Unidentified Prototypes 1 | . . . 1 Corrupted Parts 2 | . 2 . . System Corruption 9 | . 9 . . Parts Lost 17 | . 8 2 7 Power 5 | . 2 1 2 Propulsion 5 | . 3 . 2 Utility 2 | . . 1 1 Weapon 5 | . 3 . 2 Highest Loss Streak 7 | . 7 2 6 To Critical Strikes . | . . . . Average Slot Usage (%) 77 | . 85 78 52 Engine 13 | . 13 6 17 Leg 17 | . 16 28 9 Wheel 2 | . 3 . . Hover 3 | . 5 . . Flight 1 | . . . 5 Device 13 | . 16 6 8 Protection 6 | . 5 14 2 Energy Gun 1 | . 2 . . Energy Cannon 6 | . 8 8 . Ballistic Gun 3 | . . 8 8 Launcher 6 | . 8 5 . Special Melee Weapon 1 | . 1 . . Naked Turns 20 | . 13 . 7 Heaviest Build 25 | 6 18 20 25 Greatest Support 20 | 20 20 20 20 Greatest Overweight (x) 4 | . 2 . 4 Average Overweight (x) . | . . . 1 Largest Inventory Capacity 5 | 5 5 5 5 Average Capacity 5 | 5 5 5 5 Most Carried 5 | 2 5 2 2 Average Carried . | . 1 . . Final Capacity 5 | 5 5 5 5 Final Carried 2 | 2 . . . Class Distribution -------------------- 71% | Mutant 28% | Scavenger-Mutant Dominant Class ---------------- Mutant | -10/Materials Mutant | -10/Mines Mutant | -9/Materials Resources | -11 -10 -10 -9 ----------- Run | Yrd Mat Min Mat Matter Collected 835 | 250 308 110 167 Remotely 30 | . 30 . . Salvage Created 616 | 50 412 89 65 Parts 47 | 2 32 6 7 Haulers Intercepted . | . . . . Recyclers Shooed . | . . . . Parts Field Recycled . | . . . . Retrieved Matter . | . . . . Parts Self-Destructed . | . . . . Prevented . | . . . . Kills | -11 -10 -10 -9 ------- Run | Yrd Mat Min Mat Combat Hostiles Destroyed 19 | 1 12 3 3 Melee 2 | . 1 . 1 Guns 3 | 1 . . 2 Cannons 6 | . 4 2 . AOE 8 | . 7 1 . Classes Destroyed 5 | 1 4 . . Worker 2 | . 2 . . Operator 1 | . 1 . . Watcher 3 | . 3 . . Swarmer 5 | . 2 1 2 Grunt 14 | 1 10 2 1 Best Kill Streak 4 | 1 4 2 2 Combat Bots Only 2 | 1 2 2 2 Max Kills in Single Turn 2 | 1 2 1 1 Gunslinging . | . . . . Exploded 1 | . 1 1 . Melee 1 | . 1 . 1 Uniques/NPCs Destroyed . | . . . . Combat | -11 -10 -10 -9 -------- Run | Yrd Mat Min Mat Hostile Shots Fired 215 | 8 89 8 110 Missed 67 | 2 28 2 35 Damage Taken 1905 | 62 819 188 836 Core 567 | . 141 13 413 Absorbed by Shields 140 | . . . 140 Core Remaining (%) 69 | 100 . 38 . Volleys Fired 84 | 7 45 9 23 Largest 2 | 2 2 2 1 Hottest 110 | 80 110 86 45 Shots Fired 108 | 14 58 13 23 Gun 54 | 14 13 4 23 Cannon 33 | . 25 8 . Launcher 19 | . 18 1 . Special 2 | . 2 . . Kinetic 22 | . . 4 18 Thermal 33 | 7 26 . . Explosive 19 | . 18 1 . Electromagnetic 34 | 7 14 8 5 Robot Hit Streak 5 | 4 5 2 4 Robot Miss Streak 5 | 2 2 2 5 Penetration Max . | . . . . Secondary Targets . | . . . . Shots Hit Robots 62 | 9 39 3 11 Core Hits 46 | 2 30 3 11 Critical Kills . | . . . . Critical Parts Destroyed . | . . . . Critical Strikes 1 | . 1 . . Corrupt 1 | . 1 . . Melee Attacks 17 | . 17 . . Impact . | . . . . Slashing . | . . . . Piercing . | . . . . Sneak Attacks . | . . . . Combat Hostiles . | . . . . Follow-up Attacks . | . . . . Damage Inflicted 1662 | 115 1281 115 151 Guns 331 | 115 95 . 121 Cannons 347 | . 272 75 . Explosions 905 | . 865 40 . Melee . | . . . . Ramming 55 | . 25 . 30 Kinetic 78 | . . . 78 Thermal 275 | 35 240 . . Explosive 905 | . 865 40 . Electromagnetic 349 | 80 151 75 43 Impact . | . . . . Slashing . | . . . . Piercing . | . . . . Highest Corruption 10 | . 9 10 . Average Corruption 9 | . 8 9 . Corruption Purged . | . . . . Corruption Blocked . | . . . . Effects 68 | . 49 19 . Message Errors 15 | . 10 5 . Matter Fused 20 | . 14 6 . Heat Flow Errors 15 | . 13 2 . Energy Discharges 6 | . 5 1 . Parts Fused 1 | . 1 . . Data Loss (minor) 6 | . 2 4 . Data Loss (major) 1 | . 1 . . Misfires 3 | . 3 . . Weapon Failures 1 | . . 1 . Overload Shots . | . . . . Overflow Damage 46 | . 46 . . Projectiles . | . . . . Explosions 46 | . 46 . . Melee . | . . . . Knockbacks . | . . . . Impact . | . . . . Kinetic . | . . . . Secondary . | . . . . Self-Inflicted Damage 110 | . 81 23 6 Shots 3 | . 2 1 . Rammed 10 | . 6 . 4 Targets Rammed 29 | . 7 . 22 Kicked 19 | . 1 . 18 Crushed . | . . . . Highest Temperature 272 | 96 272 217 13 Average Temperature 72 | 57 81 62 4 Received Heat Transfer 782 | 36 381 39 326 Effects 1 | . 1 . . Energy Bleed 1 | . 1 . . Siege Activations . | . . . . Robots Corrupted . | . . . . Combat Hostiles . | . . . . Parts Fried 1 | . 1 . . Impact Corruptions . | . . . . Robots Melted . | . . . . Combat Hostiles . | . . . . Parts Melted 2 | . 1 . 1 Heat Transferred 620 | 75 545 . . Parts Sabotaged . | . . . . Parts Stolen . | . . . . Parts Stripped . | . . . . Power Chain Reactions . | . . . . Alert | -11 -10 -10 -9 ------- Run | Yrd Mat Min Mat Peak Influence 166 | 20 166 152 85 Initial 64 | . 13 64 . Average 58 | 2 60 92 30 Maximum Alert Level . | . . . . Low Security (%) 100 | 100 100 100 100 Level 1 . | . . . . Level 2 . | . . . . Level 3 . | . . . . Level 4 . | . . . . Level 5 . | . . . . High Security . | . . . . Max Security . | . . . . Squads Dispatched 4 | . 3 . 1 Investigation 2 | . 1 . 1 Extermination . | . . . . Reinforcement 2 | . 2 . . Assault . | . . . . Garrison . | . . . . Intercept . | . . . . Searches Triggered . | . . . . Construction Impeded . | . . . . Haulers Reinforced . | . . . . Active Scanning Responses . | . . . . Cargo Convoy Interrupts . | . . . . Stealth | -11 -10 -10 -9 --------- Run | Yrd Mat Min Mat Distress Signals 1 | . 1 . . Communications Jammed . | . . . . Distress Signals . | . . . . Times Spotted 43 | 1 26 3 13 Peak Tracking Total 6 | 1 4 2 6 Tactical Retreats 3 | . 2 . 1 Traps | -11 -10 -10 -9 ------- Run | Yrd Mat Min Mat Traps Triggered 4 | . 3 . 1 Indirectly . | . . . . Trap Hack Attempts . | . . . . Triggered . | . . . . Disarmed 1 | . 1 . . Reprogrammed . | . . . . Reused . | . . . . Traps Extracted . | . . . . Installed . | . . . . Triggered 1 | . . 1 . Machines | -11 -10 -10 -9 ---------- Run | Yrd Mat Min Mat Machines Disabled 2 | . 1 1 . Max in Single Turn 1 | . 1 1 . Machines Repaired . | . . . . Machines Dismantled . | . . . . Machines Sabotaged . | . . . . Overloaded Fab Kills . | . . . . Hacking | -11 -10 -10 -9 --------- Run | Yrd Mat Min Mat Machines Accessed 10 | . 8 1 1 Terminals 7 | . 6 . 1 Fabricators . | . . . . Repair Stations . | . . . . Recycling Units 2 | . 2 . . Scanalyzers . | . . . . Garrison Access . | . . . . Total Hacks 24 | . 21 1 2 Successful 20 | . 17 1 2 Failed 3 | . 3 . . Catastrophic . | . . . . Database Lockouts 1 | . 1 . . Manual . | . . . . Terminals 18 | . 16 . 2 Fabricators . | . . . . Repair Stations . | . . . . Recycling Units 5 | . 5 . . Scanalyzers . | . . . . Garrison Access . | . . . . Terminal Hacks 16 | . 13 1 2 Record 8 | . 6 . 2 Prototype ID Bank 1 | . 1 . . Open Door 1 | . . 1 . Locate Traps 2 | . 2 . . Disarm Traps 1 | . 1 . . Dispatch Records 3 | . 3 . . Fabricator Hacks . | . . . . Repair Station Hacks . | . . . . Recycling Unit Hacks 4 | . 4 . . Process 1 | . 1 . . Report Inventory 3 | . 3 . . Scanalyzer . | . . . . Garrison Access Hacks . | . . . . Unauthorized Hacks . | . . . . Terminals . | . . . . Fabricators . | . . . . Repair Stations . | . . . . Recycling Units . | . . . . Scanalyzers . | . . . . Garrison Access . | . . . . Data Cores Recovered 1 | . 1 . . Used . | . . . . Hacking Detections 6 | . 5 . 1 Full Trace Events 3 | . 3 . . Feedback Events . | . . . . Feedback Blocked . | . . . . Robot Schematics Acquired . | . . . . Robots Built . | . . . . Authchips . | . . . . Time . | . . . . Total Robot Build Rating . | . . . . Part Schematics Acquired . | . . . . Parts Built . | . . . . Authchips . | . . . . Time . | . . . . Total Part Build Rating . | . . . . Parts Repaired . | . . . . Time . | . . . . Parts Recycled . | . . . . Recycled Matter 97 | . 97 . . Retrieved Matter . | . . . . Retrieved Components . | . . . . Parts Scanalyzed . | . . . . Part Schematics Acquired . | . . . . Parts Damaged . | . . . . Bothacking | -11 -10 -10 -9 ------------ Run | Yrd Mat Min Mat Used RIF Installer . | . . . . Robots Hacked 1 | . 1 . . Non-combat 1 | . 1 . . Combat . | . . . . Robot Hacks Applied 2 | . 2 . . parse_system 2 | . 2 . . Relay Couplers Released . | . . . . Fabnet Peak Effective % . | . . . . Robots Rewired . | . . . . Allies Hacked . | . . . . Hacks Repelled . | . . . . Allies | -11 -10 -10 -9 -------- Run | Yrd Mat Min Mat Total Allies . | . . . . Largest Group . | . . . . Highest-Rated Group . | . . . . Highest-Rated Ally . | . . . . Total Orders . | . . . . Ally Attacks . | . . . . Total Damage . | . . . . Kills . | . . . . Allies Corrupted . | . . . . Allies Melted . | . . . . Intel | -11 -10 -10 -9 ------- Run | Yrd Mat Min Mat Robot Analysis Total . | . . . . Derelict Logs Recovered 1 | . . 1 . Drone Launches . | . . . . Drone Recoveries . | . . . . Exploration | -11 -10 -10 -9 ------------- Run | Yrd Mat Min Mat Turns Passed 2490 | 92 1438 477 483 Spaces Moved 1848 | 83 1193 364 208 Core 36 | 23 10 . 3 Treads . | . . . . Legs 1161 | . 664 364 133 Wheels 225 | 60 165 . . Hover 354 | . 354 . . Flight 72 | . . . 72 Fastest Speed 50 | 50 50 120 50 Average Speed 109 | 71 95 120 187 Slowest Speed 320 | 80 190 120 320 Overloaded Moves . | . . . . Propulsion Burnouts . | . . . . Robots Hopped . | . . . . Cave-ins Triggered . | . . . . Exploration Rate (%) 49 | 5 95 82 16 Regions Visited 3 Branch Regions 1 Pre-discovered Areas . | . . . . Known Exits Taken 1 | . . 1 . Unknown Exits Taken 2 | 1 1 . . Scrap Searched 1 | . . 1 . Spaces Dug . | . . . . Terrain Destroyed 101 | . 98 3 . Melee . | . . . . Projectile . | . . . . AOE 101 | . 98 3 . Terrain Rammed . | . . . . Walls Destroyed . | . . . . Machines Disabled . | . . . . Actions | -11 -10 -10 -9 --------- Run | Yrd Mat Min Mat Total 2203 | 101 1426 393 283 Wait 97 | . 90 5 2 Move 1845 | 82 1192 363 208 Hop . | . . . . Pick Up 48 | 7 25 6 10 Fast Attach 5 | . 5 . . Attach 44 | 5 24 5 10 Detach 3 | . 3 . . Swap 1 | . 1 . . Drop 30 | . 17 5 8 Fire 84 | 7 45 9 23 Melee 17 | . 17 . . Ram 10 | . 6 . 4 Kick 19 | . 1 . 18 Crush . | . . . . Escape Stasis . | . . . . Rewire . | . . . . Trap . | . . . . Miscellaneous . | . . . . Route ------- -11/Scrapyard -10/Materials (discovered 5 exits: *Mat x3 / *Min x2) -10/Mines (discovered 2 exits: *Mat x2) -9/Materials History --------- Turn | Location | Event 2 | -11/Scrapyard | Met Revision 17 56 | -11/Scrapyard | Discovered new exit (range 8) 93 | -11/Scrapyard | Entered Materials 255 | -10/Materials | Lost 7 parts (2p2n3w) 317 | -10/Materials | Build established: Mutant 618 | -10/Materials | Discovered new exit (range 12) 622 | -10/Materials | Discovered new exit (range 16) 803 | -10/Materials | Discovered new exit (range 15) 887 | -10/Materials | Build established: Scavenger-Mutant 998 | -10/Materials | Discovered new exit (range 16) 1000 | -10/Materials | Discovered new exit (range 9) 1119 | -10/Materials | Central database locked down 1255 | -10/Materials | Build established: Mutant 1441 | -10/Materials | Core integrity fell below 50% 1531 | -10/Materials | Entered Mines 1556 | -10/Mines | Discovered new exit (range 10) 1763 | -10/Mines | System corruption reached 10% 1886 | -10/Mines | Identified exit to Materials 1926 | -10/Mines | Met a Derelict who couldn't figure out how to use a Trap Extractor 2008 | -10/Mines | Entered Materials 2008 | -9/Materials | Evolved 2 slots: Power x1, Utility x1 2446 | -9/Materials | Core integrity fell below 50% 2466 | -9/Materials | Core integrity fell below 20% 2490 | -9/Materials | Lost 6 parts (2p2n1u1w) 2491 | -9/Materials | Destroyed by Y-45 Defender with Beam Rifle Last Messages --------------- Kicked G-34 Mercenary. Hvy. EM Pulse Gun destroyed. Kicked G-34 Mercenary. Kicked G-34 Mercenary out of the way. Kicked G-34 Mercenary. Kicked G-34 Mercenary out of the way. Y-45 Defender misfires. Kicked G-34 Mercenary. Aluminum Leg destroyed. Slammed into G-34 Mercenary. G-34 Mercenary destroyed. Acquired 37 matter. Acquired Aluminum Leg. Critical hit (Burn: +37). K-01 Serf collects debris. Kicked Y-45 Defender. Kicked Y-45 Defender out of the way. Kicked Y-45 Defender. Kicked Y-45 Defender out of the way. Kicked Y-45 Defender. Map ----- +----------------------------------------------------+ | ?????????????????????????????????????????????????? | | ???????????????????????#######???????????????????? | | ???????????????????????# #???????????????????? | | ?????????????????####### #???????????????????? | | ?????????? =*%[=! #???????????????????? | | ?????????????????####### #???????????????????? | | ???????????????????????# #???????????????????? | | ???????????????????????## ##???????????????????? | | ??????????????????####??# #????????????????????? | | ??????????????????? ??# ###########??????????? | | ????????????????? ?? ?# # "" = *#??????????? | | ????????????????? ""? ?#k # ""S #??????????? | | ????????????????? """ # # "" #??????????? | | ????????????????# """ # # #??????????? | | ????????????????# / + """ """ #??????????? | | ????????????????# """ # k# """ """ #??????????? | | ????????????????? R??# # """ """ #??????????? | | ????????????????# ????# # #??????????? | | ????????????????# ??????# ##+########??????????? | | ????????????????????????# + = [[ #????????????? | | ?????????????????######## # ![[ #????????????? | | ?????????????????# # m # [ #????????????? | | ???????????????? # # #########????????????? | | ???????????????? # # #????????????????????? | | ???????????????? # + #????????????????????? | | ???????????????? # #@ #????????????????????? | | ???????????????# # # Y #????????????????????? | | ???????????????# ######## #????????????????????? | | ???????????????# # # #????????????????????? | | ???????????????# #[/ # #????????????????????? | | ????????######## #[ # #????????????????????? | | ????????# "T" ## # [ # #????????????????????? | | ????????# ## # ! # #????????????????????? | | ????????# ## # # ###??????????????????? | | ????????# ## #####+## #??????????????????? | | ????????# """ # #??????????????????? | | ????????# """ + =! #??????????????????? | | ????????# """ # = #??????????????????? | | ????????# # [ #??????????????????? | | ????????# """ # #??????????????????? | | ????????# """ # #??????????????????? | | ????????# """ # ####### #??????????????????? | | ????????# # #?????# #??????????????????? | | ????????#?##### #?????# #??????????????????? | | ??????????????# #?????# #??????????????????? | | ??????????????# #?????# #??????????????????? | | ??????????????# +?????# #??????????????????? | | ??????????????# #?????# #??????????????????? | | ??????????????# #?????# #??????????????????? | | ??????????????# #?????# #??????????????????? | +----------------------------------------------------+ Best States ------------- Heat Dissipation 35 Energy Generation 21 Energy Capacity 440 Matter Stores 300 Matter Capacity 300 Sight Range 16 Robot Scan Range 14 Terrain Scan Density 10 Armor Coverage 150 Evasion (%) 55 Item Schematics ----------------- None Robot Schematics ------------------ None Fabricated ------------ Nothing Alien Tech Used ----------------- None Achievements -------------- Fist Fight Maybe Next Time I'll Detach My Launcher One Hack Too Far Risk Taker Storm Trooper System Compromised Uninvited Guest Challenges ------------ None Game ------ Seed CompactGreatStick Manual? 0 Play Time 00:40:58 Cumulative 1.0 hours Start 2024.04.03 @ 22:39:04 End 2024.04.03 @ 23:17:27 Sessions 1 Manual Loads 0 Difficulty Rogue Special Mode None Game No. 2 Rogue 2 Adventurer 0 Explorer 0 Win Type - Total 0 Types 0/0/0/0/0/0/0/0/0 Lore% 1 Gallery% 3 Achievement% 3 Wizard Run 0 Options --------- Layout 1 ASCII 0 Keyboard 0 Movement Mouse Keybinds 0 Fullscreen 1 Font 32/SmallcapsGlow Map View 50x35 Zoom Use 0% Tactical HUD 0 Map Filters NONE Filters NONE Steam 1 RUN: 650b5f9c-df4f-491b-afb1-a3ed4707a9ea